fUST/lending_fUST_20240122
["ID","MTS","AMOUNT","RATE_DAILY","PERIOD"]
[312452227,1705889439131,-1589.24944099,0.00029998,2]
[312452228,1705889439139,-302.88277812,0.00029998,2]
[312452229,1705889439149,-155.52902438,0.00029998,2]
[312452230,1705889439158,-155.29955505,0.00029998,2]
[312452231,1705889439166,-2715.82120739,0.00029998,5]
[312452232,1705889439176,-557.40804177,0.00029998,2]
[312452233,1705889439186,-2110.93796249,0.00029998,2]
[312452234,1705889439196,-266.32501303,0.00029998,2]
[312452235,1705889439205,-282.7329986,0.00029998,2]
[312452236,1705889439215,-2847.89925956,0.00029998,2]
[312452237,1705889439224,-154.98408317,0.00029998,2]
[312452238,1705889439233,-293.07385432,0.00029998,2]
[312452239,1705889439242,-879.07360451,0.00029998,2]
[312452240,1705889439251,-275.5634889,0.00029998,2]
[312452241,1705889439260,-229.47099509,0.00029998,2]
[312452242,1705889439270,-903.36330693,0.00029998,2]
[312452243,1705889439280,-724.71548923,0.00029998,2]
[312452244,1705889439290,-713.9771395,0.00029998,2]
[312452245,1705889439299,-3140.65767969,0.00029998,2]
[312452246,1705889439309,-265.47671845,0.00029998,2]
[312452247,1705889439319,-2934.94745219,0.00029998,2]
[312452248,1705889439328,-155.27787518,0.00029999,2]
[312452249,1705889439338,-155.66099634,0.00029999,2]
[312452250,1705889439347,-649.27373613,0.00029999,2]
[312452251,1705889439356,-273.66855885,0.00029999,2]
[312452252,1705889439365,-155.16402194,0.00029999,2]
[312452253,1705889439374,-157.42178217,0.00029999,2]
[312452254,1705889439384,-263.43605329,0.00029999,2]
[312452255,1705889439392,-244.08935296,0.00029999,2]
[312452256,1705889439402,-521.68480571,0.00029999,2]
[312452257,1705889439411,-155.20620185,0.00029999,2]
[312452258,1705889439420,-2045.10846849,0.00029999,2]
[312452259,1705889439430,-155.04898318,0.00029999,2]
[312452260,1705889439439,-154.9644633,0.00029999,2]
[312452261,1705889439448,-4738.38130826,0.00029999,2]
[312452262,1705889439457,-181.9279656,0.00029999,2]
[312452263,1705889439466,-1076.03,0.00029999,2]
[312452264,1705889439474,-1076.03,0.00029999,2]
[312452265,1705889439484,-1076.03,0.00029999,2]
[312452266,1705889439493,-1076.03,0.00029999,2]
[312452267,1705889439503,-1076.03,0.00029999,2]
[312452268,1705889439513,-1076.03,0.00029999,2]
[312452269,1705889439522,-1076.03,0.00029999,2]
[312452270,1705889439531,-1076.03,0.00029999,2]
[312452271,1705889439541,-23606.4,0.00029999,2]
[312452272,1705889439550,-111336.65871403,0.0003,2]
[312452273,1705889439560,-92383.0,0.0003,2]
[312452274,1705889439569,-7537.6220626,0.0003,2]
[312452275,1705889439579,-335.23684588,0.0003,4]
[312452276,1705889439588,-1000.0,0.0003,6]
[312452277,1705889439597,-150.0,0.0003,4]
[312452278,1705889439606,-657.40715545,0.0003,3]
[312452279,1705889439617,-155.05528178,0.0003,2]
[312452280,1705889439626,-155.22136565,0.0003,4]
[312452281,1705889439635,-2371.37507479,0.0003,2]
[312452282,1705889439644,-1232.44908462,0.0003,14]
[312452283,1705889439653,-244.14912804,0.0003,4]
[312452284,1705889439662,-464.67563146,0.0003,2]
[312452285,1705889439671,-155.21894323,0.0003,4]
[312452286,1705889439681,-154.73694719,0.0003,4]
[312452287,1705889439690,-351.4636412,0.0003,2]
[312452288,1705889439699,-171.52624548,0.0003,5]
[312452289,1705889439708,-549.92040414,0.0003,4]
[312452290,1705889439716,-292.50003308,0.0003,2]
[312452291,1705889439725,-789.10816941,0.0003,4]
[312452292,1705889439734,-1825.57072994,0.0003,2]
[312452293,1705889439743,-1940.46352197,0.0003,4]
[312452294,1705889439752,-268.82044835,0.0003,4]
[312452295,1705889439761,-1500.0,0.0003,2]
[312452296,1705889439771,-539.542437,0.0003,3]
[312452297,1705889439780,-1155.06304181,0.0003,14]
[312452298,1705889439789,-300.0,0.0003,4]
[312452299,1705889439797,-658.5730621,0.0003,2]
[312452300,1705889439806,-854.094,0.0003,2]
[312452301,1705889439815,-182.0,0.0003,2]
[312452302,1705889439824,-200.0,0.00030015,15]
[312452303,1705889439833,-276.948782,0.00030017,3]
[312452304,1705889439842,-153.516981,0.00030112,2]
[312452305,1705889439851,-253.46126,0.00030112,2]
[312452306,1705889439859,-159.48518,0.00030112,2]
[312452307,1705889439869,-197.73441218,0.0003013,2]
[312452308,1705889439878,-153.0,0.00030137,2]
[312452309,1705889439887,-153.0,0.00030137,2]
[312452310,1705889439896,-153.0,0.00030137,2]
[312452311,1705889439905,-153.0,0.00030137,2]
[312452312,1705889439914,-153.0,0.00030137,2]
[312452313,1705889439924,-199.1433421,0.00030137,2]
[312452314,1705889439934,-157.894736,0.00030137,2]
[312452315,1705889439943,-154.68194604,0.00030137,7]
[312452316,1705889439953,-151.0,0.00030358,2]
[312452317,1705889439962,-155.0,0.00030368,2]
[312452318,1705889439972,-153.516981,0.0003048,2]
[312452319,1705889439981,-253.46126,0.0003048,2]
[312452320,1705889439990,-159.48518,0.0003048,2]
[312452321,1705889439999,-1000.0,0.0003049,7]
[312452322,1705889440011,-1000.0,0.0003049,7]
[312452323,1705889440021,-4732.93907528,0.000305,2]
[312452324,1705889440030,-596.138415,0.00030528,2]
[312452325,1705889440039,-167.58797732,0.000306,2]
[312452326,1705889440048,-204.83424406,0.000306,2]
[312452327,1705889440058,-151.0,0.00030717,2]
[312452328,1705889440067,-157.894736,0.00030746,2]
[312452329,1705889440076,-620.29014907,0.00030811,2]
[312452330,1705889440085,-620.27637293,0.00030812,2]
[312452331,1705889440096,-150.0,0.00030817,2]
[312452332,1705889440107,-150.0,0.0003082,2]
[312452333,1705889440116,-166.67911,0.00030847,2]
[312452334,1705889440125,-153.516981,0.00030847,2]
[312452335,1705889440134,-253.46126,0.00030847,2]
[312452336,1705889440143,-159.48518,0.00030847,2]
[312452337,1705889440152,-154.68194604,0.00030863,7]
[312452338,1705889440162,-7941.03701199,0.000309,10]
[312452339,1705889440171,-459.57047649,0.000309,3]
[312452340,1705889440185,-160.0,0.00030902,3]
[312452341,1705889440194,-463.05002002,0.00030999,4]
[312452342,1705889440203,-500.0,0.00030999,4]
[312452343,1705889440213,-500.0,0.00030999,4]
[312452344,1705889440222,-388.60722128,0.00030999,4]
[312452345,1705889440232,-500.0,0.00030999,4]
[312452346,1705889440241,-500.0,0.00030999,4]
[312452347,1705889440250,-500.0,0.00030999,4]
[312452348,1705889440260,-500.0,0.00030999,4]
[312452349,1705889440270,-500.0,0.00030999,4]
[312452350,1705889440279,-500.0,0.00030999,4]
[312452351,1705889440289,-553.28211294,0.00030999,4]
[312452352,1705889440298,-500.0,0.00030999,4]
[312452353,1705889440308,-296.31669131,0.00030999,4]
[312452354,1705889440317,-351.07343649,0.00030999,4]
[312452355,1705889440327,-500.0,0.00030999,4]
[312452356,1705889440336,-500.0,0.00030999,4]
[312452357,1705889440345,-243.12303791,0.00030999,4]
[312452358,1705889440353,-500.0,0.00030999,4]
[312452359,1705889440363,-500.0,0.00030999,4]
[312452360,1705889440371,-155.4428885,0.00030999,4]
[312452361,1705889440487,-10727.14,0.00030999,2]
[312452362,1705889440496,-404.95394388,0.00030999,4]
[312452363,1705889440505,-500.0,0.00030999,4]
[312452364,1705889440515,-508.9166359,0.00030999,4]
[312452365,1705889440524,-500.0,0.00030999,4]
[312452366,1705889440532,-502.27225961,0.00030999,4]
[312452367,1705889440541,-256.64850344,0.00030999,4]
[312452368,1705889440550,-500.0,0.00030999,2]
[312452369,1705889440559,-500.0,0.00030999,2]
[312452370,1705889440568,-500.0,0.00030999,2]
[312452371,1705889440577,-500.0,0.00030999,2]
[312452372,1705889440586,-565.92101291,0.00030999,2]
[312452373,1705889440595,-500.0,0.00030999,2]
[312452374,1705889440604,-233.97073652,0.00030999,2]
[312452375,1705889440613,-500.0,0.00030999,2]
[312452376,1705889440622,-500.0,0.00030999,2]
[312452377,1705889440631,-276.9028585,0.00030999,2]
[312452378,1705889440640,-500.0,0.00030999,2]
[312452379,1705889440649,-500.0,0.00030999,2]
[312452380,1705889440658,-500.0,0.00030999,2]
[312452381,1705889440667,-401.62697269,0.00030999,2]
[312452382,1705889440678,-500.0,0.00030999,2]
[312452383,1705889440687,-500.0,0.00030999,2]
[312452384,1705889440695,-500.0,0.00030999,2]
[312452385,1705889440704,-607.59449587,0.00030999,2]
[312452386,1705889440713,-500.0,0.00030999,2]
[312452387,1705889440722,-500.0,0.00030999,2]
[312452388,1705889440731,-377.68360086,0.00030999,2]
[312452389,1705889440740,-293.5882946,0.00030999,2]
[312452390,1705889440749,-114100.60911712,0.00031,2]
[312452435,1705889443798,-542.68,0.00030999,2]
[312452437,1705889443807,-542.68,0.00030999,2]
[312452438,1705889443816,-542.68,0.00030999,2]
[312452439,1705889443825,-542.68,0.00030999,2]
[312452440,1705889443834,-19596.97007612,0.00031,2]
[312452441,1705889443845,-542.82452944,0.00031,2]
[312452495,1705890632608,-1601.66359203,0.00023145,2]
[312452496,1705890632620,-2207.52151007,0.00023145,2]
[312452497,1705890632629,-154.73694719,0.00023248,4]
[312452498,1705890632638,-3979.10871767,0.00023249,2]
[312452580,1705890639117,-20920.89128233,0.00023249,2]
[312452582,1705890639126,-687.467161,0.00023586,2]
[312452584,1705890639136,-167.431323,0.0002394,2]
[312452586,1705890639145,-1089.15,0.00024037,3]
[312452588,1705890639154,-71746.8555922,0.00024047,2]
[312452590,1705890639163,-2090.63721756,0.00024557,2]
[312452592,1705890639172,-167.431323,0.00024756,2]
[312452594,1705890639182,-167.431323,0.00025572,2]
[312452596,1705890639191,-173.299992,0.0002621,2]
[312452598,1705890639200,-167.431323,0.00026388,2]
[312452600,1705890639209,-200.0,0.00026788,15]
[312452601,1705890639218,-713.9771395,0.0002714,2]
[312452627,1705890639368,-155.66099634,0.00027141,2]
[312452629,1705890639378,-557.40804177,0.00027141,2]
[312452631,1705890639388,-229.47099509,0.00027141,2]
[312452632,1705890639398,-649.27373613,0.00027141,2]
[312452633,1705890639410,-157.42178217,0.00027141,2]
[312452634,1705890639420,-265.47671845,0.00027141,2]
[312452635,1705890639429,-1589.24944099,0.00027141,2]
[312452636,1705890639438,-724.71548923,0.00027141,2]
[312452637,1705890639448,-275.5634889,0.00027141,2]
[312452638,1705890639457,-302.88277812,0.00027141,2]
[312452639,1705890639466,-154.98408317,0.00027141,2]
[312452640,1705890639476,-155.52902438,0.00027141,2]
[312452641,1705890639487,-266.32501303,0.00027141,2]
[312452642,1705890639496,-2934.94745219,0.00027141,2]
[312452643,1705890639505,-3140.65767969,0.00027141,2]
[312452644,1705890639514,-155.29955505,0.00027141,2]
[312452645,1705890639523,-903.36330693,0.00027141,2]
[312452646,1705890639533,-879.07360451,0.00027141,2]
[312452647,1705890639542,-2110.93796249,0.00027141,2]
[312452648,1705890639551,-282.7329986,0.00027141,2]
[312452649,1705890639561,-2715.82120739,0.00027141,5]
[312452650,1705890639571,-293.07385432,0.00027141,2]
[312452651,1705890639581,-2847.89925956,0.00027141,2]
[312452652,1705890639590,-278.0941099,0.00027141,2]
[312452653,1705890639600,-167.13580679,0.00027141,2]
[312452654,1705890639611,-1584.99516597,0.00027141,2]
[312452655,1705890639621,-2045.10846849,0.00027142,2]
[312452656,1705890639630,-273.66855885,0.00027142,2]
[312452657,1705890639639,-167.431323,0.00027204,2]
[312452658,1705890639648,-635.48479936,0.0002728,2]
[312452659,1705890639657,-500.0,0.00027397,2]
[312452660,1705890639667,-580.58981348,0.00027534,2]
[312452661,1705890639676,-243.78903537,0.00027774,2]
[312452662,1705890639686,-3945.99515633,0.00027774,5]
[312452663,1705890639695,-823.8966286,0.00027774,5]
[312452664,1705890639704,-774.53333419,0.00027774,5]
[312452665,1705890639713,-998.07631522,0.000278,2]
[312452666,1705890639722,-155.82127014,0.000279,2]
[312452667,1705890639732,-290.88109032,0.00028,2]
[312452668,1705890639741,-620.77423997,0.00028644,2]
[312452669,1705890639751,-198.712806,0.00028767,2]
[312452670,1705890639760,-569.905666,0.00028767,2]
[312452671,1705890639770,-4738.38130826,0.00028798,2]
[312452672,1705890639779,-181.9279656,0.00028798,2]
[312452673,1705890639788,-154.9644633,0.00028798,2]
[312452674,1705890639797,-244.08935296,0.00028798,2]
[312452675,1705890639806,-155.16402194,0.00028798,2]
[312452676,1705890639815,-263.43605329,0.00028798,2]
[312452677,1705890639824,-155.27787518,0.00028798,2]
[312452678,1705890639833,-155.20620185,0.00028798,2]
[312452679,1705890639842,-521.68480571,0.00028798,2]
[312452680,1705890639850,-155.04898318,0.00028798,2]
[312452681,1705890639860,-13123.33251511,0.00028799,2]
[312452682,1705890639868,-2865.24520256,0.000288,3]
[312452683,1705890639877,-198.74287399,0.000289,2]
[312452684,1705890639887,-154.73694719,0.00029,2]
[312452685,1705890639896,-1880.79357717,0.00029,2]
[312452686,1705890639904,-1628.067035,0.00029,2]
[312452687,1705890639913,-155.0,0.00029076,2]
[312452688,1705890639922,-157.77679298,0.00029107,2]
[312452689,1705890639931,-157.77679298,0.00029308,2]
[312452690,1705890639940,-153.3201572,0.00029315,2]
[312452691,1705890639950,-306.0,0.00029315,2]
[312452692,1705890639960,-328.5963742,0.00029315,2]
[312452693,1705890639969,-398.3400276,0.00029315,2]
[312452694,1705890639980,-153.0,0.00029315,2]
[312452695,1705890639989,-202.0223312,0.00029315,2]
[312452696,1705890639999,-306.0,0.00029315,2]
[312452697,1705890640009,-398.2866842,0.00029315,2]
[312452698,1705890640019,-199.1433421,0.00029315,2]
[312452700,1705890640028,-306.0,0.00029315,2]
[312452701,1705890640038,-9121.34550853,0.0002945,4]
[312452703,1705890640046,-280.0,0.00029467,15]
[312452704,1705890640055,-201.59970554,0.000295,30]
[312452706,1705890640065,-159.05659348,0.00029521,2]
[312452707,1705890640074,-167.57867912,0.00029564,2]
[312452708,1705890640083,-6691.14407663,0.00029564,2]
[312452709,1705890640092,-425.16454401,0.00029564,2]
[312452710,1705890640101,-182.21337601,0.00029564,2]
[312452711,1705890640109,-1000.0,0.00029564,7]
[312452712,1705890640118,-619.7041338,0.00029564,2]
[312452713,1705890640127,-428.96352466,0.00029564,2]
[312452714,1705890640136,-154.0789856,0.00029589,2]
[312452715,1705890640145,-153.0,0.00029589,2]
[312452716,1705890640154,-153.0,0.00029589,2]
[312452717,1705890640163,-153.0,0.00029589,2]
[312452718,1705890640172,-153.0,0.00029589,2]
[312452719,1705890640181,-569.905666,0.00029648,2]
[312452720,1705890640191,-159.05659348,0.00029676,2]
[312452721,1705890640199,-159.05659348,0.00029881,2]
[312452722,1705890640208,-232.8358268,0.0003,3]
[312452723,1705890640217,-657.40715545,0.0003,3]
[312452724,1705890640226,-244.14912804,0.0003,4]
[312452725,1705890640235,-464.67563146,0.0003,2]
[312452726,1705890640244,-154.73694719,0.0003,4]
[312452727,1705890640254,-2371.37507479,0.0003,2]
[312452728,1705890640263,-155.21894323,0.0003,4]
[312452729,1705890640272,-789.10816941,0.0003,4]
[312452730,1705890640281,-155.05528178,0.0003,2]
[312452731,1705890640290,-155.22136565,0.0003,4]
[312452732,1705890640300,-1000.0,0.0003,6]
[312452733,1705890640309,-1232.44908462,0.0003,14]
[312452734,1705890640318,-1500.0,0.0003,2]
[312452735,1705890640327,-151.0,0.0003,2]
[312452736,1705890640336,-154.68194604,0.00030045,7]
[312452737,1705890640346,-620.038712,0.00030076,2]
[312452738,1705890640355,-576.0,0.000301,2]
[312452739,1705890640364,-155.41194498,0.00030136,4]
[312452740,1705890640373,-199.1433421,0.00030137,2]
[312452741,1705890640382,-199.1433421,0.00030137,2]
[312452742,1705890640395,-199.1433421,0.00030137,2]
[312452743,1705890640404,-343.8412942,0.00030137,2]
[312452744,1705890640412,-153.0,0.00030137,2]
[312452745,1705890640422,-153.0,0.00030137,2]
[312452746,1705890640430,-398.2866842,0.00030137,2]
[312452747,1705890640441,-153.0,0.00030137,2]
[312452748,1705890640451,-153.0,0.00030137,2]
[312452749,1705890640460,-153.0,0.00030137,2]
[312452750,1705890640469,-153.0,0.00030137,2]
[312452751,1705890640481,-153.0,0.00030137,2]
[312452752,1705890640491,-398.2866842,0.00030137,2]
[312452753,1705890640501,-156.7251511,0.00030137,2]
[312452754,1705890640510,-199.1433421,0.00030137,2]
[312452755,1705890640519,-199.1433421,0.00030137,2]
[312452756,1705890640528,-199.1433421,0.00030137,2]
[312452757,1705890640537,-153.0,0.00030137,2]
[312452758,1705890640546,-199.1433421,0.00030137,2]
[312452759,1705890640555,-157.894736,0.00030137,2]
[312452760,1705890640565,-199.1966855,0.00030178,2]
[312452761,1705890640576,-308.0536621,0.00030241,2]
[312452762,1705890640587,-150.72868836,0.00030261,30]
[312452763,1705890640596,-154.68194604,0.00030299,7]
[312452764,1705890640605,-199.1966855,0.00030378,2]
[312452765,1705890640615,-153.0,0.00030378,2]
[312452766,1705890640625,-154.8406734,0.00030378,2]
[312452767,1705890640635,-153.0,0.00030378,2]
[312452768,1705890640644,-153.0,0.00030378,2]
[312452769,1705890640653,-153.0,0.00030378,2]
[312452770,1705890640663,-153.0,0.00030378,2]
[312452771,1705890640673,-199.1966855,0.00030378,2]
[312452772,1705890640682,-153.0,0.00030378,2]
[312452773,1705890640692,-153.0,0.00030378,2]
[312452774,1705890640701,-153.0,0.00030378,2]
[312452775,1705890640711,-153.0,0.00030378,2]
[312452776,1705890640722,-155.0,0.00030446,2]
[312452777,1705890640732,-1000.0,0.00030521,7]
[312452778,1705890640743,-569.905666,0.00030528,2]
[312452779,1705890640754,-1118.94101605,0.0003062,7]
[312452780,1705890640763,-408.91692561,0.000307,2]
[312452781,1705890640772,-408.91692561,0.000307,2]
[312452783,1705890640781,-408.91692561,0.000307,2]
[312452784,1705890640791,-408.91692561,0.000307,2]
[312452785,1705890640800,-408.91692561,0.000307,2]
[312452786,1705890640809,-408.91692561,0.000307,2]
[312452787,1705890640818,-408.91692561,0.000307,2]
[312452788,1705890640827,-408.91692561,0.000307,2]
[312452789,1705890640836,-408.91692561,0.000307,2]
[312452790,1705890640845,-408.91692,0.000307,2]
[312452791,1705890640854,-154.68194604,0.00030723,7]
[312452792,1705890640863,-157.894736,0.00030746,2]
[312452793,1705890640872,-150.72868836,0.00030878,7]
[312452794,1705890640881,-1072.71,0.00030899,2]
[312452795,1705890640890,-1072.71,0.00030899,2]
[312452796,1705890640900,-1072.71,0.00030899,2]
[312452797,1705890640909,-1072.71,0.00030899,2]
[312452798,1705890640918,-1072.71,0.00030899,2]
[312452799,1705890640927,-1072.71,0.00030899,2]
[312452800,1705890640936,-1072.71,0.00030899,2]
[312452801,1705890640945,-1072.71,0.00030899,2]
[312452802,1705890640955,-1072.71,0.00030899,2]
[312452803,1705890640963,-1072.71,0.00030899,2]
[312452804,1705890640973,-200173.846069,0.000309,3]
[312452805,1705890640982,-150.95382499,0.00030997,2]
[312452806,1705890640991,-6366.19469533,0.00030998,3]
[312452807,1705890641002,-4025.69736659,0.00030998,4]
[312452808,1705890641011,-2040.82473269,0.00030998,4]
[312452809,1705890641020,-169.73519084,0.00030998,4]
[312452810,1705890641029,-155.22293448,0.00030998,4]
[312452811,1705890641038,-155.24775222,0.00030998,4]
[312452812,1705890641046,-167.29030928,0.00030998,4]
[312452813,1705890641055,-1608.31048474,0.00030998,4]
[312452814,1705890641064,-155.28902032,0.00030998,4]
[312452815,1705890641072,-284.51107705,0.00030999,4]
[312452816,1705890641081,-192.48830428,0.00030999,4]
[312452817,1705890641089,-435.61732347,0.00030999,4]
[312452818,1705890641098,-622.21065558,0.00030999,4]
[312452819,1705890641107,-459.89414373,0.00030999,4]
[312452820,1705890641115,-513.77951556,0.00030999,2]
[312452821,1705890641124,-500.0,0.00030999,2]
[312452822,1705890641133,-500.0,0.00030999,2]
[312452823,1705890641142,-651.07344034,0.00030999,2]
[312452824,1705890641150,-500.0,0.00030999,2]
[312452825,1705890641159,-643.03779835,0.00030999,2]
[312452826,1705890641168,-450.81348635,0.00030999,2]
[312452827,1705890641177,-388.45142925,0.00030999,2]
[312452828,1705890641185,-396.14470904,0.00030999,2]
[312452829,1705890641195,-529.65395241,0.00030999,4]
[312452830,1705890641204,-502.27225961,0.00030999,4]
[312452831,1705890641213,-356.24164514,0.00030999,4]
[312452832,1705890641222,-404.95394388,0.00030999,4]
[312452833,1705890641231,-180.32539453,0.00030999,2]
[312452834,1705890641240,-155.4428885,0.00030999,4]
[312452835,1705890641250,-500.0,0.00030999,4]
[312452836,1705890641259,-500.0,0.00030999,4]
[312452837,1705890641269,-621.56151895,0.00030999,4]
[312452838,1705890641278,-500.0,0.00030999,4]
[312452839,1705890641287,-296.31669131,0.00030999,4]
[312452840,1705890641297,-400.60286341,0.00030999,4]
[312452841,1705890641306,-425.53671824,0.00030999,4]
[312452842,1705890641315,-500.00000001,0.00030999,4]
[312452843,1705890641324,-500.0,0.00030999,4]
[312452844,1705890641334,-500.0,0.00030999,4]
[312452845,1705890641343,-500.0,0.00030999,4]
[312452846,1705890641352,-500.0,0.00030999,4]
[312452847,1705890641362,-388.60722128,0.00030999,4]
[312452848,1705890641371,-500.0,0.00030999,4]
[312452849,1705890641380,-500.0,0.00030999,4]
[312452850,1705890641390,-500.0,0.00030999,4]
[312452851,1705890641399,-463.05002002,0.00030999,4]
[312452852,1705890641412,-156.54004736,0.00030999,4]
[312452853,1705890641422,-847.56877835,0.00030999,14]
[312452854,1705890641431,-406550.16269086,0.00031,2]
[312452855,1705890641441,-680.28859057,0.00031,3]
[312452856,1705890641452,-73813.68609115,0.00031,2]
[312452857,1705890641465,-4036.93073367,0.00031,2]
[312452861,1705890641510,-46661.49825119,0.00031,2]
[312452862,1705890641519,-154.7215013,0.00031,4]
[312452864,1705890641528,-2154.71432726,0.00031,2]
[312452866,1705890641538,-180733.73820666,0.00031,2]
[312452868,1705890641547,-273388.25301365,0.00031,2]
[312452881,1705890641686,-4223.25279965,0.00031,2]
[312452883,1705890641697,-8900.07971546,0.00031,2]
[312452958,1705890643619,-154.73694719,0.00030136,5]
[312452959,1705890643628,-7396.87920343,0.00031,2]
[312452984,1705890647288,-633.79841199,0.00029564,2]
[312452986,1705890647298,-33580.38652237,0.00031,2]
[312453109,1705891837974,-154.73694719,0.00026185,4]
[312453110,1705891837986,-166.6666676,0.00026186,2]
[312453111,1705891837995,-473.42437884,0.00026494,2]
[312453112,1705891838006,-5632.82482136,0.00026494,2]
[312453113,1705891838016,-2635.6312963,0.00026578,2]
[312453114,1705891838025,-266.3742192,0.00026744,2]
[312453115,1705891838035,-1250.900689,0.00026792,2]
[312453116,1705891838044,-343.73358,0.00026838,2]
[312453118,1705891838054,-175.31260756,0.00027729,3]
[312453119,1705891838063,-617.10075988,0.00027771,3]
[312453120,1705891838073,-1017.35382707,0.00027771,5]
[312453121,1705891838082,-1375.59,0.0002782,3]
[312453122,1705891838092,-1145.2757454,0.00027821,2]
[312453123,1705891838102,-262.03703209,0.00027829,2]
[312453124,1705891838111,-20895.55414875,0.00027829,2]
[312453125,1705891838121,-179.48642096,0.00027829,2]
[312453126,1705891838130,-690.36966502,0.00027829,2]
[312453127,1705891838140,-526.58372141,0.0002783,2]
[312453128,1705891838150,-36953.29134027,0.0002783,2]
[312453129,1705891838159,-155.14055194,0.0002783,2]
[312453130,1705891838169,-2033.84808518,0.0002783,2]
[312453131,1705891838179,-618.78283911,0.00027831,2]
[312453132,1705891838189,-19764.24458662,0.00027831,2]
[312453133,1705891838198,-214.1397108,0.00027831,2]
[312453134,1705891838207,-154.76784823,0.00027831,2]
[312453135,1705891838216,-192.00832231,0.00027831,2]
[312453136,1705891838225,-263.23835816,0.00027831,2]
[312453137,1705891838236,-212.26592677,0.00027831,2]
[312453138,1705891838245,-2102.56602861,0.00027831,2]
[312453139,1705891838254,-244.07062179,0.00027832,2]
[312453140,1705891838264,-13761.56192643,0.00027832,2]
[312453141,1705891838274,-175.7875728,0.00027832,2]
[312453142,1705891838283,-600.5553591,0.00027832,2]
[312453143,1705891838292,-24900.0,0.00027833,2]
[312453144,1705891838302,-154.95864133,0.00027898,2]
[312453145,1705891838311,-198.712806,0.00028767,2]
[312453146,1705891838320,-184.83171,0.00028801,2]
[312453147,1705891838330,-150.0,0.00028817,2]
[312453148,1705891838339,-977.35755814,0.000289,2]
[312453149,1705891838349,-154.73694719,0.00029,2]
[312453150,1705891838358,-1880.79357717,0.00029,2]
[312453151,1705891838367,-154.68194604,0.00029437,2]
[312453152,1705891838377,-8889.85329448,0.0002945,4]
[312453153,1705891838387,-349.68108545,0.00029627,2]
[312453154,1705891838396,-422.2953529,0.00029627,2]
[312453155,1705891838405,-5000.0,0.00029925,5]
[312453156,1705891838414,-657.40715545,0.0003,3]
[312453157,1705891838424,-464.67563146,0.0003,2]
[312453158,1705891838434,-244.14912804,0.0003,4]
[312453159,1705891838443,-2371.37507479,0.0003,2]
[312453160,1705891838453,-5500.00000007,0.0003,2]
[312453161,1705891838462,-154.73694719,0.0003,4]
[312453162,1705891838471,-155.0,0.0003,2]
[312453163,1705891838486,-157.0,0.0003,2]
[312453164,1705891838497,-199.1433421,0.00030137,2]
[312453165,1705891838507,-199.1433421,0.00030137,2]
[312453166,1705891838516,-196.5402299,0.00030137,2]
[312453167,1705891838526,-153.0,0.00030137,2]
[312453168,1705891838537,-154.68194604,0.00030324,7]
[312453169,1705891838548,-154.68194604,0.00030361,7]
[312453170,1705891838558,-576.0,0.000305,2]
[312453171,1705891838569,-200.0,0.00030602,15]
[312453172,1705891838579,-157.894736,0.00030638,2]
[312453173,1705891838590,-9987.88644192,0.00030689,4]
[312453174,1705891838600,-222.42222138,0.00030977,4]
[312453175,1705891838610,-382.49277579,0.00030998,4]
[312453176,1705891838621,-560.48837219,0.00030998,6]
[312453177,1705891838632,-874.04705685,0.00030998,4]
[312453178,1705891838643,-232.83582678,0.00030999,3]
[312453179,1705891838654,-3221.47,0.00030999,2]
[312453180,1705891838665,-3221.47,0.00030999,2]
[312453181,1705891838675,-3221.47,0.00030999,2]
[312453182,1705891838686,-3221.47,0.00030999,2]
[312453183,1705891838697,-3221.47,0.00030999,2]
[312453184,1705891838707,-3221.47,0.00030999,2]
[312453185,1705891838716,-3221.47,0.00030999,2]
[312453186,1705891838726,-3221.47,0.00030999,2]
[312453187,1705891838741,-309.20208075,0.00030999,3]